bitfinex/quotes_ETHUSD_20230116
["timestamp","ask_amount","ask_price","bid_price","bid_amount"]
[1673881591155,14.2896,1540.6,1540.4,19.67546]
[1673881592052,14.2896,1540.6,1540.4,6.69182]
[1673881592421,14.2896,1540.6,1540.4,13.18364]
[1673881593519,0.099,1540.6,1540.5,3.0]
[1673881593716,9.5524,1540.9,1540.5,4.618364]
[1673881593717,0.099,1540.9,1540.5,4.618364]
[1673881594046,0.4871,1541.0,1540.6,2.0]
[1673881594218,12.57524395,1541.1,1540.7,12.98102]
[1673881594440,3.27278678,1541.0,1540.7,6.49047]
[1673881594627,3.27278678,1541.0,1540.6,0.066]
[1673881594628,3.27278678,1540.9,1540.6,0.066]
[1673881594846,3.60006546,1540.8,1540.3,33.316]
[1673881595084,3.60006546,1540.8,1540.3,30.31]
[1673881595085,3.27278678,1540.7,1540.3,30.31]
[1673881595615,9.76402678,1540.6,1540.2,0.86176203]
[1673881595950,9.76402678,1540.6,1540.2,0.79576203]
[1673881595951,9.86302678,1540.6,1540.2,0.79576203]
[1673881596259,3.27278678,1540.5,1540.2,0.79576203]
[1673881596431,3.60006546,1540.4,1540.2,0.79576203]
[1673881597056,4.08736546,1540.4,1540.2,0.79576203]
[1673881597602,11.27278678,1540.3,1540.2,0.79576203]
[1673881597821,11.27278678,1540.3,1540.2,0.58748375]
[1673881597822,12.50542596,1540.3,1540.2,0.58748375]
[1673881598192,21.22766596,1540.3,1540.2,0.58748375]
[1673881598364,2.0,1540.2,1540.1,0.18544864]
[1673881598556,5.50278678,1540.2,1540.1,0.18544864]
[1673881598722,19.07450678,1540.2,1540.1,0.18544864]
[1673881599140,2.0,1540.1,1539.9,0.20356527]
[1673881599400,17.76628678,1540.0,1539.9,0.20356527]
[1673881599608,22.65729768,1540.0,1539.9,0.06071511]
[1673881599783,0.203,1539.9,1539.7,0.17431231]
[1673881599985,11.27278678,1539.8,1539.7,0.17431231]
[1673881600268,11.37178678,1539.8,1539.7,0.17431231]
[1673881600405,15.73562596,1539.8,1539.7,1.231e-05]
[1673881600615,25.39131541,1539.8,1539.7,1.231e-05]
[1673881600821,40.73688187,1539.8,1539.7,1.231e-05]
[1673881601084,40.73688187,1539.8,1539.4,0.14745977]
[1673881601256,8.0,1539.5,1539.4,0.14745977]
[1673881601467,3.37178678,1539.5,1539.4,0.14745977]
[1673881601722,3.27278678,1539.5,1539.4,0.14745977]
[1673881601973,3.83996546,1539.5,1539.4,0.14745977]
[1673881602102,0.4876,1539.5,1539.4,0.14745977]
[1673881602316,2.4876,1539.6,1539.4,1.40945977]
[1673881602528,2.0,1539.6,1539.4,0.14745977]
[1673881602737,14.7482,1539.7,1539.4,0.14745977]
[1673881602950,18.02098678,1539.7,1539.4,0.14745977]
[1673881603165,3.27278678,1539.5,1539.4,0.14745977]
[1673881603377,14.27278678,1539.5,1539.4,0.14745977]
[1673881603564,27.85060678,1539.5,1539.4,0.14745977]
[1673881604141,28.49694596,1539.5,1539.4,0.14745977]
[1673881604329,28.72694596,1539.5,1539.4,0.14745977]
[1673881604519,28.72420288,1539.5,1539.4,0.14745977]
[1673881605135,33.0778637,1539.5,1539.4,0.14745977]
[1673881605556,26.3522537,1539.5,1539.4,0.14745977]
[1673881606016,32.8478637,1539.5,1539.4,0.14745977]
[1673881606852,33.0778637,1539.5,1539.4,0.14745977]
[1673881607677,20.0866437,1539.5,1539.4,0.14745977]
[1673881608028,19.3690437,1539.5,1539.4,0.14745977]
[1673881608244,25.8646537,1539.5,1539.4,0.14745977]
[1673881608405,8.3690437,1539.5,1539.4,0.14745977]
[1673881608608,5.099,1539.5,1539.4,1.40945977]
[1673881608818,5.099,1539.5,1539.4,1.55040575]
[1673881609082,5.099,1539.5,1539.4,0.14745977]
[1673881609083,3.37178678,1539.5,1539.4,0.14745977]
[1673881609303,24.26400678,1539.5,1539.4,0.14745977]
[1673881609447,24.85060678,1539.5,1539.4,0.00588296]
[1673881609818,2.0,1539.4,1539.1,0.97585686]
[1673881610007,3.27278678,1539.3,1539.1,0.97585686]
[1673881610180,3.27278678,1539.2,1539.1,0.97585686]
[1673881610607,0.67503868,1539.3,1539.1,0.97585686]
[1673881610608,0.099,1539.3,1539.1,0.97585686]
[1673881610816,0.4876,1539.5,1539.1,0.97585686]
[1673881611046,3.27278678,1539.4,1539.1,0.97585686]
[1673881611255,0.099,1539.5,1539.1,0.97585686]
[1673881611468,14.1617,1539.7,1539.1,0.97585686]
[1673881611469,14.2607,1539.7,1539.2,0.09758569]
[1673881611661,17.53348678,1539.7,1539.2,0.09758569]
[1673881611916,14.2607,1539.7,1539.2,0.09758569]
[1673881612077,14.2607,1539.7,1539.2,2.09758569]
[1673881612288,3.27278678,1539.6,1539.3,0.20975857]
[1673881612641,3.27278678,1539.5,1539.2,5.006]
[1673881612829,3.27278678,1539.5,1539.2,3.0]
[1673881613037,3.27278678,1539.5,1539.1,4.04185686]
[1673881613245,3.27278678,1539.5,1539.1,0.97585686]
[1673881613461,3.27278678,1539.5,1539.1,1.97941355]
[1673881614131,3.27278678,1539.4,1539.1,0.97585686]
[1673881614281,3.27278678,1539.3,1539.1,0.97585686]
[1673881614755,3.27278678,1539.2,1539.1,0.97585686]
[1673881615071,16.26654678,1539.2,1539.1,0.061838]
[1673881615388,17.72958596,1539.2,1539.1,0.061838]
[1673881615700,17.72958596,1539.2,1538.6,30.59140095]
[1673881615856,17.72958596,1539.2,1538.6,30.52540095]
[1673881615857,3.27278678,1539.1,1538.6,30.52540095]
[1673881616066,9.77057678,1539.0,1538.6,30.52540095]
[1673881616279,3.27278678,1538.9,1538.6,30.52540095]
[1673881616486,3.27278678,1538.9,1538.6,0.21540095]
[1673881617140,0.099,1539.0,1538.6,6.71479095]
[1673881617358,3.27278678,1539.0,1538.6,0.21540095]
[1673881617686,3.27278678,1538.9,1538.6,0.21540095]
[1673881617895,3.27278678,1538.8,1538.6,0.21540095]
[1673881618108,4.24991246,1538.8,1538.6,0.21540095]
[1673881619731,0.099,1538.9,1538.6,0.21540095]
[1673881619876,16.67311,1539.1,1538.6,6.71469095]
[1673881620086,3.27278678,1539.0,1538.6,0.21540095]
[1673881620331,3.27278678,1538.9,1538.6,0.21540095]
[1673881620545,3.27278678,1538.8,1538.6,0.21540095]
[1673881620760,0.32727868,1538.7,1538.6,0.21540095]
[1673881621137,3.60006546,1538.7,1538.6,0.21540095]
[1673881621394,2.0,1538.6,1538.3,0.2255309]
[1673881621570,3.27278678,1538.5,1538.3,0.2255309]
[1673881621779,3.27278678,1538.4,1538.3,0.2255309]
[1673881622199,0.099,1538.5,1538.3,0.2255309]
[1673881622415,14.8602,1538.6,1538.3,0.2255309]
[1673881622646,14.3723,1538.6,1538.3,0.2255309]
[1673881622857,3.27278678,1538.5,1538.3,0.2255309]
[1673881623052,3.27278678,1538.4,1538.3,0.2255309]
[1673881623477,9.77304678,1538.4,1538.3,0.2255309]
[1673881623673,9.87204678,1538.4,1538.3,0.2255309]
[1673881624134,16.37230678,1538.4,1538.3,0.2255309]
[1673881624354,9.87204678,1538.4,1538.3,0.2255309]
[1673881624500,10.35994678,1538.4,1538.3,0.2255309]
[1673881624925,0.099,1538.4,1538.3,1.4875309]
[1673881625131,14.3723,1538.6,1538.3,1.4875309]
[1673881625337,14.3723,1538.6,1538.3,1.63628399]
[1673881625606,14.3723,1538.6,1538.3,0.2255309]
[1673881625763,17.64508678,1538.6,1538.3,0.2255309]
[1673881625973,0.099,1538.6,1538.3,0.2255309]
[1673881626304,0.87122245,1538.7,1538.3,13.87315008]
[1673881626498,0.87122245,1538.7,1538.4,3.0]
[1673881626717,0.87122245,1538.7,1538.5,6.79983]
[1673881626925,0.87122245,1538.7,1538.6,3.0]
[1673881627201,0.87122245,1538.7,1538.5,0.066]
[1673881627377,4.14400923,1538.7,1538.5,0.012]
[1673881627594,4.14400923,1538.7,1538.3,0.2255309]
[1673881627595,3.27278678,1538.6,1538.3,0.2255309]
[1673881628510,9.77224678,1538.6,1538.3,0.2255309]
[1673881628720,9.87124678,1538.6,1538.3,0.2255309]
[1673881629167,3.37178678,1538.6,1538.3,0.2255309]
[1673881629376,3.27278678,1538.6,1538.3,0.2255309]
[1673881629704,3.27278678,1538.5,1538.3,0.2255309]
[1673881629882,10.10032546,1538.4,1538.3,0.2255309]
[1673881630109,16.69958546,1538.4,1538.3,0.2255309]
[1673881630703,3.69906546,1538.4,1538.3,0.2255309]
[1673881631048,23.10084546,1538.4,1538.3,0.2255309]
[1673881631260,23.68774546,1538.4,1538.3,0.2255309]
[1673881631437,17.18748546,1538.4,1538.3,0.2255309]
[1673881631649,10.35994678,1538.4,1538.3,0.2255309]
[1673881632293,0.5869,1538.4,1538.3,0.2255309]
[1673881632505,0.4879,1538.4,1538.3,0.2255309]
[1673881633023,7.08688,1538.5,1538.3,0.2255309]
[1673881633232,0.5869,1538.5,1538.3,0.2255309]
[1673881633483,7.08633,1538.6,1538.3,0.2255309]
[1673881633642,10.35911678,1538.6,1538.3,0.2255309]
[1673881634068,0.099,1538.6,1538.3,4.54883599]
[1673881634385,14.87782245,1538.7,1538.3,4.54883599]
[1673881634965,14.87782245,1538.7,1538.3,17.55019599]
[1673881636862,21.37681245,1538.7,1538.3,17.55019599]
[1673881637013,27.87580245,1538.7,1538.3,11.04951599]
[1673881637226,28.36370245,1538.7,1538.3,11.04951599]
[1673881637553,21.86471245,1538.7,1538.3,17.55019599]
[1673881637799,21.37681245,1538.7,1538.3,17.55019599]
[1673881638011,21.37681245,1538.7,1538.3,16.2268909]
[1673881638590,31.14858923,1538.7,1538.3,16.2268909]
[1673881638813,3.27278678,1538.6,1538.3,3.2255309]
[1673881639027,9.77245678,1538.6,1538.3,3.2255309]
[1673881639274,9.87145678,1538.6,1538.3,0.2255309]
[1673881639434,0.98714568,1538.5,1538.3,0.2255309]
[1673881639894,9.77266678,1538.5,1538.3,0.2255309]
[1673881640079,9.87166678,1538.5,1538.3,0.2255309]
[1673881640499,3.27278678,1538.4,1538.3,0.2255309]
[1673881640954,24.77356678,1538.4,1538.3,0.2255309]
[1673881641279,38.13274124,1538.4,1538.3,0.2255309]
[1673881641449,34.00680596,1538.4,1538.3,0.2255309]
[1673881641639,34.00680596,1538.4,1538.1,0.04550961]
[1673881642018,19.72668678,1538.3,1538.1,0.04550961]
[1673881642164,3.27278678,1538.2,1538.1,0.04550961]
[1673881642367,21.05399,1538.3,1538.1,0.04550961]
[1673881642630,17.33768678,1538.3,1538.1,0.04550961]
[1673881642790,14.0649,1538.3,1538.1,0.04550961]
[1673881643000,0.587,1538.3,1538.1,0.04550961]
[1673881643262,0.099,1538.6,1538.1,6.54692961]
[1673881643416,6.50031,1538.4,1538.1,0.04550961]
[1673881643633,9.87209678,1538.4,1538.1,0.04550961]
[1673881643878,3.27278678,1538.3,1538.1,0.04550961]
[1673881644733,0.099,1538.4,1538.1,0.04550961]
[1673881644945,0.099,1538.6,1538.1,0.04550961]
[1673881645211,9.79052245,1538.7,1538.1,13.04854961]
[1673881645464,0.97022245,1538.7,1538.2,4.30485496]
[1673881645791,0.87122245,1538.7,1538.3,13.23094]
[1673881646001,0.87122245,1538.7,1538.4,5.0]
[1673881646210,0.87122245,1538.7,1538.5,0.23]
[1673881646535,0.87122245,1538.7,1538.5,7.25268]
[1673881646850,0.87122245,1538.7,1538.6,3.0]
[1673881647014,0.87422245,1538.7,1538.6,3.0]
[1673881647423,0.87122245,1538.7,1538.6,3.0]
[1673881647959,0.87122245,1538.7,1538.5,0.819]
[1673881648321,0.87122245,1538.7,1538.5,0.23]
[1673881649159,0.87122245,1538.7,1538.5,6.72983]
[1673881649375,0.87122245,1538.7,1538.6,3.0]
[1673881649534,0.87122245,1538.7,1538.6,3.23]
[1673881650369,0.87122245,1538.7,1538.6,1.262]
[1673881650575,0.87122245,1538.7,1538.5,0.066]
[1673881650846,23.72822148,1538.7,1538.2,14.67509]
[1673881651008,6.98751,1538.6,1538.2,6.50079]
[1673881651217,7.08651,1538.6,1538.2,6.50079]
[1673881652203,7.08651,1538.6,1538.2,8.50079]
[1673881652424,0.5869,1538.6,1538.2,8.50079]
[1673881652737,10.05272245,1538.7,1538.3,0.850079]
[1673881652887,0.97022245,1538.7,1538.4,6.5002]
[1673881653098,0.87122245,1538.7,1538.5,0.23]
[1673881653367,0.87122245,1538.7,1538.5,9.72974]
[1673881653586,0.87122245,1538.7,1538.5,12.20436]
[1673881654310,0.87122245,1538.7,1538.5,20.70419]
[1673881654521,0.87122245,1538.7,1538.5,21.95505734]
[1673881654679,0.87122245,1538.7,1538.5,20.70419]
[1673881654899,0.87122245,1538.7,1538.5,21.95502089]
[1673881655236,0.87122245,1538.7,1538.6,18.06062557]
[1673881655472,0.87122245,1538.7,1538.6,21.29062557]
[1673881655621,0.87122245,1538.7,1538.6,24.56341235]
[1673881655941,0.87122245,1538.7,1538.6,37.96497936]
[1673881656150,2.0402406,1539.0,1538.7,2.0]
[1673881656382,1.9412406,1539.0,1538.8,23.19849678]
[1673881656940,1.9412406,1539.0,1538.9,3.0]
[1673881657106,1.9412406,1539.0,1538.9,9.49814]
[1673881657540,1.9412406,1539.0,1538.9,15.99628]
[1673881657892,1.9412406,1539.0,1538.9,16.22628]
[1673881658096,1.9412406,1539.0,1538.9,18.525365]
[1673881658244,1.9412406,1539.0,1538.9,25.023505]
[1673881658598,1.9412406,1539.0,1538.9,28.29629178]
[1673881660299,1.9412406,1539.0,1538.9,25.023505]
[1673881660624,1.9412406,1539.0,1538.9,28.29629178]
[1673881661364,2.89020698,1539.4,1538.9,35.09437883]
[1673881661506,2.89020698,1539.4,1539.0,9.01222466]
[1673881661719,2.89020698,1539.4,1539.1,32.26162678]
[1673881662196,2.89020698,1539.4,1539.3,12.9929]
[1673881662342,2.89020698,1539.4,1539.3,22.48935]
[1673881662560,2.89020698,1539.4,1539.3,24.944885]
[1673881662773,2.89020698,1539.4,1539.3,11.951985]
[1673881663628,2.89320698,1539.4,1539.3,11.951985]
[1673881663843,2.89020698,1539.4,1539.3,11.951985]
[1673881665139,2.89020698,1539.4,1539.3,3.0]
[1673881665506,2.89020698,1539.4,1539.2,9.56283]
[1673881665737,2.89020698,1539.4,1539.2,3.0]
[1673881666324,2.89020698,1539.4,1539.2,9.49683]
[1673881666513,3.27278678,1539.3,1539.1,0.066]
[1673881666661,8.10615868,1539.2,1538.9,0.066]
[1673881666871,14.70203868,1539.2,1538.7,6.49858]
[1673881667117,0.4877,1539.1,1538.7,6.49858]
[1673881667545,44.97041868,1539.2,1538.7,6.49858]
[1673881667950,38.47313868,1539.2,1538.7,6.49858]
[1673881668261,38.47313868,1539.2,1538.8,3.0]
[1673881668481,3.27278678,1539.1,1538.7,0.066]
[1673881668824,22.76621678,1539.0,1538.6,30.31]
[1673881669029,6.49865,1538.8,1538.5,0.066]
[1673881669247,6.59765,1538.8,1538.3,43.31086]
[1673881669398,7.08545,1538.8,1538.4,4.331086]
[1673881669871,10.35823678,1538.8,1538.4,4.331086]
[1673881670024,16.85688678,1538.8,1538.4,4.331086]
[1673881670399,16.85688678,1538.8,1538.3,30.376]
[1673881670548,31.10068678,1538.8,1538.3,30.31]
[1673881671446,3.27278678,1538.7,1538.3,30.31]
[1673881671604,12.99898,1538.6,1538.2,0.066]
[1673881671812,16.85866678,1538.6,1538.1,0.04550961]
[1673881672184,0.5869,1538.6,1538.1,16.73482857]
[1673881672398,0.4879,1538.6,1538.1,16.73482857]
[1673881672707,0.4879,1538.6,1538.2,3.0]
[1673881673551,0.4879,1538.6,1538.2,9.50105]
[1673881673721,6.98735,1538.6,1538.2,9.50105]
[1673881673934,7.08635,1538.6,1538.2,12.13123786]
[1673881674142,6.59845,1538.6,1538.2,12.13123786]
[1673881674356,0.4879,1538.5,1538.2,12.13123786]
[1673881674580,0.4879,1538.5,1538.2,18.63233786]
[1673881674757,0.099,1538.6,1538.2,18.63233786]
[1673881674758,0.4879,1538.6,1538.2,18.63233786]
[1673881674967,0.4879,1538.6,1538.3,1.86323379]
[1673881675222,0.4879,1538.6,1538.3,14.86454379]
[1673881675809,39.05291,1538.8,1538.3,14.86454379]
[1673881675810,0.4878,1538.7,1538.3,14.86454379]
[1673881676064,0.4878,1538.7,1538.3,21.36522379]
[1673881676279,0.4908,1538.7,1538.5,6.49983]
[1673881676495,23.5124,1538.8,1538.5,21.099467]
[1673881676650,14.3428,1538.8,1538.6,3.0]
[1673881676855,14.3428,1538.8,1538.6,15.9985]
[1673881677334,14.3428,1538.8,1538.6,3.0]
[1673881678067,14.3428,1538.8,1538.5,0.066]
[1673881678238,37.11133678,1538.8,1538.5,3.0]
[1673881678668,37.11133678,1538.8,1538.4,3.066]
[1673881678876,37.11133678,1538.8,1538.4,3.0]
[1673881679272,0.4878,1538.7,1538.4,3.0]
[1673881679536,6.49902,1538.7,1538.4,3.0]
[1673881679757,6.59802,1538.7,1538.4,3.0]
[1673881681537,6.59802,1538.7,1538.4,9.50025]
[1673881681865,6.59802,1538.7,1538.4,11.75477815]
[1673881682074,6.59802,1538.7,1538.4,9.49806115]
[1673881682451,6.59802,1538.7,1538.4,2.99781115]
[1673881682680,13.09704,1538.7,1538.4,2.99781115]
[1673881682877,13.09704,1538.7,1538.3,13.06689]
[1673881683082,14.06042826,1538.7,1538.3,6.50044]
[1673881683497,13.09704,1538.7,1538.3,6.50044]
[1673881684452,0.099,1538.7,1538.3,19.5018]
[1673881684683,0.4878,1538.7,1538.3,19.5018]
[1673881684996,31.10068678,1538.8,1538.3,19.5018]
[1673881685177,37.59954678,1538.8,1538.4,8.45025]
[1673881685634,31.10068678,1538.8,1538.4,8.45025]
[1673881685802,14.3428,1538.8,1538.5,3.0]
[1673881686013,14.3428,1538.8,1538.6,2.0]
[1673881686271,14.3428,1538.8,1538.7,1.462]
[1673881686435,14.3428,1538.8,1538.7,14.45998]
[1673881686643,14.3428,1538.8,1538.7,20.95897]
[1673881686879,0.099,1538.8,1538.7,20.95897]
[1673881687119,1.45110956,1539.0,1538.7,20.95897]
[1673881687276,26.00910956,1539.1,1538.9,6.49814]
[1673881687500,1.06240956,1539.1,1538.9,6.49814]
[1673881687713,0.96340956,1539.1,1538.9,6.49814]
[1673881687958,2.40853676,1539.1,1538.9,6.49814]
[1673881688601,15.1325,1539.2,1538.9,12.99628]
[1673881688742,15.1325,1539.2,1539.0,4.299628]
[1673881688960,0.099,1539.2,1539.0,10.797258]
[1673881689218,1.45109841,1539.3,1539.0,10.797258]
[1673881689748,0.9633416,1539.2,1539.0,4.299628]
[1673881689958,0.9633416,1539.2,1539.0,3.0]
[1673881689959,1.46185049,1539.2,1539.0,3.0]
[1673881690267,0.099,1539.3,1539.0,3.0]
[1673881690584,0.49850048,1539.3,1539.0,3.0]
[1673881690795,0.49850048,1539.3,1538.9,13.06228]
[1673881691012,0.49850048,1539.3,1539.0,1.306228]
[1673881691340,5.39770275,1539.4,1539.1,19.4919]
[1673881691637,3.95260529,1539.4,1539.2,3.0]
[1673881691791,3.85360529,1539.4,1539.3,1.562]
[1673881692000,3.38861135,1539.4,1539.2,16.05922]
[1673881692208,2.89020698,1539.4,1539.2,15.99322]
[1673881692471,2.89020698,1539.4,1539.3,14.592222]
[1673881692756,2.89020698,1539.4,1539.3,17.592222]
[1673881693289,2.89020698,1539.4,1539.3,24.088672]
[1673881694185,2.89020698,1539.4,1539.3,17.592222]
[1673881694711,3.33653947,1539.4,1539.2,6.56246]
[1673881695024,2.89020698,1539.4,1539.2,12.99334]
[1673881695602,2.89020698,1539.4,1539.3,3.0]
[1673881695846,2.89020698,1539.4,1539.3,24.48935]
[1673881696596,2.89020698,1539.4,1539.3,22.48935]
[1673881697650,2.89020698,1539.4,1539.3,25.394531]
[1673881697961,2.89020698,1539.4,1539.3,18.898081]
[1673881698180,2.89020698,1539.4,1539.3,15.9929]
[1673881698749,2.89020698,1539.4,1539.3,9.49645]
[1673881700232,2.89020698,1539.4,1539.0,3.27278678]
[1673881700444,2.89020698,1539.4,1539.3,6.49645]
[1673881700777,2.89020698,1539.4,1539.2,15.05976]
[1673881700968,2.89020698,1539.4,1539.2,14.99376]
[1673881701179,2.89020698,1539.4,1539.2,21.49064]
[1673881701424,2.89020698,1539.4,1539.2,24.319029]
[1673881702282,2.89020698,1539.4,1539.3,3.0]
[1673881702655,2.89020698,1539.4,1539.3,9.49645]
[1673881702875,2.89020698,1539.4,1539.3,3.0]
[1673881704075,2.89020698,1539.4,1539.2,19.55648]
[1673881704259,2.89020698,1539.4,1539.2,19.49048]
[1673881704739,2.89020698,1539.4,1539.2,12.9936]
[1673881707998,2.89020698,1539.4,1539.2,6.49672]
[1673881708628,2.89020698,1539.4,1539.2,12.9936]
[1673881709424,3.68591245,1539.4,1539.1,9.56321]
[1673881709636,11.1428507,1539.4,1539.1,9.49716]
[1673881709790,19.6668486,1539.4,1539.0,19.55848]
[1673881710170,19.6668486,1539.4,1539.0,19.49248]
[1673881710171,0.96094771,1539.3,1539.0,19.49248]
[1673881710472,24.72190147,1539.4,1539.0,12.99496]
[1673881710676,2.47219015,1539.3,1539.0,12.99496]
[1673881710995,3.43318235,1539.3,1539.0,12.99496]
[1673881712148,2.47219015,1539.3,1539.0,6.49748]
[1673881712514,0.4877,1539.2,1539.0,6.4977]
[1673881712934,9.45627015,1539.3,1539.0,6.4977]
[1673881713151,0.94562702,1539.2,1539.0,6.4977]
[1673881713407,0.94862702,1539.2,1539.0,6.4977]
[1673881713725,0.94562702,1539.2,1539.0,6.4977]
[1673881714307,1.90705058,1539.2,1538.9,9.56394]
[1673881714512,0.19070506,1539.1,1538.9,9.49794]
[1673881714773,0.19070506,1539.1,1538.8,0.066]
[1673881714990,7.94705474,1539.0,1538.7,30.31]
[1673881715159,0.79470547,1538.9,1538.6,6.5652]
[1673881715510,0.79470547,1538.9,1538.6,6.4992]
[1673881716112,2.79470547,1538.9,1538.6,6.4992]
[1673881716296,3.75653304,1538.9,1538.6,6.4992]
[1673881716674,0.3756533,1538.8,1538.6,6.4992]
[1673881717032,6.8742233,1538.8,1538.5,0.066]
[1673881717239,6.8742233,1538.8,1538.4,43.5444662]
[1673881717240,6.9732233,1538.8,1538.4,43.5444662]
[1673881717513,6.9732233,1538.8,1538.4,13.2344662]
[1673881717730,7.93498657,1538.8,1538.5,3.0]
[1673881717873,0.79349866,1538.7,1538.4,13.3004662]
[1673881718080,0.79349866,1538.7,1538.4,13.2344662]
[1673881718293,0.79349866,1538.7,1538.4,6.7344062]
[1673881718574,7.29250866,1538.7,1538.4,6.7344062]
[1673881718732,7.39150866,1538.7,1538.4,6.7344062]
[1673881718924,0.73915087,1538.6,1538.4,6.7344062]
[1673881722532,0.73915087,1538.6,1538.4,0.2343962]
[1673881725224,0.72365224,1538.6,1538.4,0.2343962]
[1673881726396,7.22307224,1538.6,1538.4,0.2343962]
[1673881726616,7.32207224,1538.6,1538.4,0.2343962]
[1673881726826,0.73220722,1538.5,1538.4,0.2343962]
[1673881728176,7.23203722,1538.5,1538.4,0.2343962]
[1673881728411,7.33103722,1538.5,1538.4,0.2343962]
[1673881729665,13.83086722,1538.5,1538.4,0.2343962]
[1673881729873,23.603484,1538.5,1538.4,0.2343962]
[1673881731538,0.099,1538.5,1538.4,1.4963962]
[1673881731801,0.099,1538.6,1538.4,7.9966562]
[1673881731968,0.4878,1538.7,1538.4,7.9966562]
[1673881732187,0.4878,1538.7,1538.4,14.4969162]
[1673881732481,17.6400133,1538.8,1538.4,22.9971762]
[1673881732693,17.6400133,1538.8,1538.5,2.52971762]
[1673881732919,17.6400133,1538.8,1538.5,9.02944762]
[1673881733125,18.1278133,1538.8,1538.5,2.52971762]
[1673881733364,21.40060008,1538.8,1538.4,0.3003962]
[1673881733553,21.40060008,1538.8,1538.4,3.2343962]
[1673881733771,20.91280008,1538.8,1538.4,3.2343962]
[1673881734346,20.91280008,1538.8,1538.4,9.7344762]
[1673881734476,20.91280008,1538.8,1538.4,5.54069729]
[1673881734686,33.90998008,1538.8,1538.4,3.2343962]
[1673881735034,3.27278678,1538.7,1538.4,0.2343962]
[1673881735254,3.27278678,1538.6,1538.4,0.2343962]
[1673881735870,0.099,1538.7,1538.4,13.2348762]
[1673881736094,18.0288133,1538.8,1538.4,19.7351362]
[1673881736095,17.6400133,1538.8,1538.4,19.7351362]
[1673881736272,17.6400133,1538.8,1538.5,14.97282362]
[1673881736483,17.6400133,1538.8,1538.5,6.49951]
[1673881736942,17.6400133,1538.8,1538.4,6.8006162]
[1673881737101,17.6400133,1538.8,1538.4,13.2348362]
[1673881737776,27.41137008,1538.8,1538.4,6.7346162]
[1673881738009,27.89917008,1538.8,1538.4,6.7346162]
[1673881738533,2.78991701,1538.7,1538.4,6.7346162]
[1673881740687,2.78991701,1538.7,1538.4,0.2343962]
[1673881741061,9.28913701,1538.7,1538.4,0.2343962]
[1673881741226,9.38813701,1538.7,1538.4,0.2343962]
[1673881742150,15.88735701,1538.7,1538.4,0.2343962]
[1673881742626,6.59822,1538.7,1538.4,0.2343962]
[1673881742836,3.37178678,1538.7,1538.4,9.7346362]
[1673881743055,16.67948459,1538.8,1538.4,22.7351162]
[1673881743201,39.44801137,1538.8,1538.4,3.2343962]
[1673881743418,3.94480114,1538.7,1538.4,0.2343962]
[1673881743780,23.44243114,1538.7,1538.4,0.2343962]
[1673881743954,23.54143114,1538.7,1538.4,0.2343962]
[1673881744900,26.81421792,1538.7,1538.4,0.2343962]
[1673881745456,10.54283114,1538.7,1538.4,0.2343962]
[1673881745660,0.099,1538.7,1538.4,22.73254352]
[1673881745828,17.16728459,1538.8,1538.5,0.23]
[1673881746039,16.67948459,1538.8,1538.5,0.25745112]
[1673881746305,16.67948459,1538.8,1538.5,6.75707112]
[1673881746669,16.67948459,1538.8,1538.5,9.06260658]
[1673881748352,15.2368,1538.8,1538.5,9.06260658]
[1673881748596,0.099,1538.8,1538.5,22.06226658]
[1673881748806,0.96166768,1538.9,1538.7,12.99798]
[1673881749024,2.50335227,1539.0,1538.8,1.26466952]
[1673881749209,1.44268459,1539.0,1538.8,1.26466952]
[1673881749436,3.36607266,1539.1,1538.8,1.49466952]
[1673881749794,1.44268459,1539.0,1538.8,1.26466952]
[1673881749949,0.96224163,1538.9,1538.8,7.76318952]
[1673881750322,0.96220622,1539.0,1538.8,19.34450147]
[1673881750630,0.96220622,1539.0,1538.9,3.0]
[1673881750786,2.89315346,1539.1,1538.9,15.99628]
[1673881751431,16.58700036,1539.2,1538.9,15.99628]
[1673881751432,17.07470036,1539.2,1538.9,15.99628]
[1673881751672,17.07470036,1539.2,1538.9,16.80747587]
[1673881751888,1.50393762,1539.1,1538.9,23.30561587]
[1673881752057,2.50204219,1539.2,1539.0,22.98782917]
[1673881752282,2.50204219,1539.2,1539.1,5.29878292]
[1673881752283,2.40589111,1539.2,1539.1,5.29878292]
[1673881752508,2.40589111,1539.2,1539.1,11.79608292]
[1673881752680,1.50435344,1539.2,1539.1,11.79608292]
[1673881752891,2.94782023,1539.2,1539.1,11.79608292]
[1673881753585,1.44346679,1539.2,1539.1,11.79608292]
[1673881753779,1.44346679,1539.2,1539.1,0.41965014]
[1673881753989,1.44346679,1539.2,1538.8,19.56101]
[1673881753990,8.85707492,1539.2,1538.8,19.56101]
[1673881754336,0.96228795,1539.0,1538.7,13.06394]
[1673881754485,2.84216016,1539.0,1538.7,6.49897]
[1673881755111,0.96228795,1539.0,1538.8,3.0]
[1673881755324,1.39873481,1539.0,1538.8,16.946947]
[1673881755853,0.96228795,1539.0,1538.8,16.946947]
[1673881758781,0.96528795,1539.0,1538.8,16.946947]
[1673881758994,0.96228795,1539.0,1538.8,16.946947]
[1673881759430,2.40526727,1539.0,1538.8,9.49848]
[1673881759854,8.90304727,1539.0,1538.8,3.0]
[1673881760084,0.96228795,1538.9,1538.8,3.0]
[1673881761048,1.05850024,1539.0,1538.8,9.49857]
[1673881761244,1.39844479,1539.0,1538.8,9.49857]
[1673881761416,1.39844479,1539.0,1538.8,11.754773]
[1673881761632,1.5388488,1539.1,1538.8,24.751913]
[1673881761873,0.96187174,1539.2,1538.9,0.23]
[1673881762088,0.96187174,1539.2,1539.0,19.49316]
[1673881762323,0.12040797,1539.3,1539.1,4.949316]
[1673881762628,0.46023981,1539.3,1539.1,11.446416]
[1673881763217,0.96158048,1539.2,1539.1,11.446416]
[1673881763449,0.98577616,1539.3,1539.1,24.671016]
[1673881763644,0.02419568,1539.3,1539.1,24.441016]
[1673881763850,0.02419568,1539.3,1539.2,2.4441016]
[1673881764202,0.02719568,1539.3,1539.2,8.9409816]
[1673881764361,0.02419568,1539.3,1539.2,11.9409816]
[1673881764579,0.02419568,1539.3,1539.2,3.0]
[1673881764773,1.46562116,1539.3,1539.1,3.066]
[1673881765155,0.9608914,1539.2,1539.1,3.0]
[1673881767098,1.46562116,1539.3,1539.1,3.0]
[1673881768247,0.98482021,1539.3,1539.1,9.49722]
[1673881768460,2.42547438,1539.3,1539.1,9.49722]